fUSD/lending_fUSD_20251024
["ID","MTS","AMOUNT","RATE_DAILY","PERIOD"]
[392329485,1761346245020,-342.96610045,0.00038161,3]
[392329486,1761346245030,-500.0,0.00038161,3]
[392329487,1761346245039,-500.0,0.00038161,3]
[392329488,1761346245048,-500.0,0.00038161,3]
[392329489,1761346245057,-500.0,0.00038161,3]
[392329490,1761346245067,-500.0,0.00038161,3]
[392329491,1761346245076,-500.0,0.00038161,3]
[392329492,1761346245085,-489.64647954,0.00038161,3]
[392329493,1761346245095,-200.0,0.00038162,2]
[392329494,1761346245103,-200.0,0.00038162,2]
[392329495,1761346245113,-500.0,0.00038163,2]
[392329496,1761346245122,-500.0,0.00038164,2]
[392329497,1761346245131,-500.0,0.00038164,2]
[392329498,1761346245142,-428.0,0.00038164,2]
[392329499,1761346245152,-1228.0,0.00038164,2]
[392329500,1761346245161,-1000.0,0.000382,7]
[392329501,1761346245171,-500.0,0.00038218,2]
[392329502,1761346245182,-500.0,0.00038219,2]
[392329503,1761346245192,-500.0,0.00038219,2]
[392329504,1761346245202,-428.0,0.00038219,2]
[392329505,1761346245212,-1228.0,0.00038219,2]
[392329506,1761346245222,-379.0843863,0.00038226,2]
[392329507,1761346245233,-209.0,0.0003823,2]
[392329508,1761346245244,-166.66,0.00038234,30]
[392329509,1761346245253,-863.37,0.00038241,2]
[392329510,1761346245262,-500.0,0.00038245,30]
[392329511,1761346245271,-9746.30385874,0.00038245,120]
[392329512,1761346245281,-151.0,0.00038246,30]
[392329513,1761346245290,-151.0,0.00038246,30]
[392329514,1761346245301,-276.209474,0.00038246,30]
[392329515,1761346245310,-151.0,0.00038246,30]
[392329516,1761346245319,-151.0,0.00038246,30]
[392329517,1761346245329,-151.0,0.00038246,30]
[392329518,1761346245338,-151.0,0.00038246,30]
[392329519,1761346245348,-151.0,0.00038246,30]
[392329520,1761346245358,-151.0,0.00038246,30]
[392329521,1761346245367,-300.0,0.00038247,3]
[392329522,1761346245377,-1425.0,0.00038252,2]
[392329523,1761346245387,-500.0,0.00038255,30]
[392329524,1761346245396,-924.39405687,0.00038255,2]
[392329525,1761346245406,-117231.5366,0.00038256,30]
[392329526,1761346245415,-189.202989,0.00038256,30]
[392329528,1761346245425,-189.202989,0.00038256,30]
[392329530,1761346245434,-189.202989,0.00038256,30]
[392329532,1761346245443,-189.202991,0.00038256,30]
[392329533,1761346245452,-151.0,0.00038256,30]
[392329536,1761346245462,-151.0,0.00038256,30]
[392329538,1761346245470,-246.62389,0.00038256,30]
[392329539,1761346245479,-1425.0,0.00038256,2]
[392329541,1761346245488,-151.0,0.00038256,30]
[392329543,1761346245497,-151.0,0.00038256,30]
[392329546,1761346245506,-159.393,0.00038259,2]
[392329548,1761346245515,-2053.0,0.00038259,2]
[392329550,1761346245524,-572.0,0.00038259,2]
[392329552,1761346245533,-3413.0,0.00038259,2]
[392329554,1761346245542,-819.0,0.00038259,2]
[392329556,1761346245552,-606.0,0.00038259,2]
[392329558,1761346245562,-1591.0,0.00038259,2]
[392329560,1761346245574,-1312.0,0.00038259,2]
[392329562,1761346245584,-903.0,0.00038259,2]
[392329564,1761346245593,-1185.0,0.00038259,2]
[392329566,1761346245602,-1269.0,0.00038259,2]
[392329568,1761346245611,-818.0,0.00038259,2]
[392329570,1761346245620,-769.91666004,0.00038259,2]
[392329589,1761346245943,-1387.71961016,0.00038259,2]
[392329590,1761346246729,-239.076323,0.00038,30]
[392329591,1761346246739,-239.076323,0.00038042,30]
[392329592,1761346246748,-239.076323,0.00038042,30]
[392329593,1761346246758,-172.771925,0.00038052,30]
[392329594,1761346246767,-239.076323,0.00038052,30]
[392329595,1761346246776,-239.076323,0.00038052,30]
[392329596,1761346246786,-172.771925,0.00038125,30]
[392329597,1761346246796,-239.076323,0.00038125,30]
[392329598,1761346246805,-239.076323,0.00038125,30]
[392329599,1761346246815,-172.771921,0.00038142,30]
[392329600,1761346246825,-239.076323,0.00038142,30]
[392329601,1761346246834,-239.07633,0.00038142,30]
[392329602,1761346246844,-4381.3637298,0.00038259,2]
[392329603,1761346246854,-3487.0,0.00038259,2]
[392329604,1761346246863,-558.0,0.00038259,2]
[392329605,1761346246873,-6456.0,0.00038259,2]
[392329606,1761346246883,-1676.0,0.00038269,7]
[392329607,1761346246893,-500.9464449,0.00038273,5]
[392329608,1761346246902,-500.0,0.00038273,5]
[392329609,1761346246911,-503.07324151,0.00038273,5]
[392329610,1761346246921,-500.0,0.00038274,2]
[392329611,1761346246931,-500.0,0.00038274,2]
[392329612,1761346246940,-428.0,0.00038274,2]
[392329613,1761346246950,-1228.0,0.00038274,2]
[392329614,1761346246959,-373.57020428,0.00038276,2]
[392329615,1761346246969,-500.0,0.00038281,30]
[392329616,1761346246978,-8135.48808057,0.000383,30]
[392329617,1761346246988,-150.0,0.000383,6]
[392329618,1761346246997,-1000.0,0.000383,7]
[392329619,1761346247007,-502.58030001,0.00038313,30]
[392329620,1761346247021,-220.21152218,0.0003832,7]
[392329621,1761346247030,-500.0,0.00038324,30]
[392329622,1761346247040,-15251.14303698,0.00038326,2]
[392329623,1761346247049,-201.14665809,0.00038328,2]
[392329624,1761346247059,-299.76347407,0.00038328,2]
[392329625,1761346247068,-428.0,0.00038328,2]
[392329626,1761346247078,-1228.0,0.00038328,2]
[392329627,1761346247087,-155.0,0.00038355,2]
[392329628,1761346247096,-156.656,0.00038355,2]
[392329629,1761346247106,-942.21014198,0.00038355,2]
[392329630,1761346247118,-2241.65409343,0.00038355,2]
[392329631,1761346247127,-500.0,0.00038355,2]
[392329632,1761346247136,-500.0,0.00038355,2]
[392329633,1761346247146,-500.0,0.00038355,2]
[392329634,1761346247156,-500.0,0.00038355,2]
[392329635,1761346247165,-500.0,0.00038356,2]
[392329636,1761346247175,-158.779104,0.00038356,30]
[392329637,1761346247184,-190.124103,0.00038356,30]
[392329638,1761346247194,-151.258158,0.00038356,30]
[392329639,1761346247203,-152.248476,0.00038356,30]
[392329640,1761346247213,-181.07057,0.00038356,30]
[392329641,1761346247222,-160.741518,0.00038356,30]
[392329642,1761346247231,-600.545527,0.00038356,30]
[392329643,1761346247240,-918.522944,0.00038356,30]
[392329644,1761346247250,-500.0,0.00038356,2]
[392329645,1761346247259,-500.0,0.00038356,30]
[392329646,1761346247268,-500.0,0.00038356,30]
[392329647,1761346247277,-500.0,0.00038356,30]
[392329648,1761346247287,-500.0,0.00038356,30]
[392329649,1761346247297,-500.0,0.00038356,30]
[392329650,1761346247306,-500.0,0.00038356,30]
[392329651,1761346247316,-500.0,0.00038356,30]
[392329652,1761346247326,-500.0,0.00038356,30]
[392329653,1761346247336,-500.0,0.00038356,30]
[392329654,1761346247345,-500.0,0.00038356,30]
[392329655,1761346247355,-966.88,0.00038356,30]
[392329656,1761346247365,-500.0,0.00038356,30]
[392329657,1761346247375,-500.0,0.00038356,30]
[392329658,1761346247384,-774.95,0.00038356,30]
[392329659,1761346247394,-500.0,0.00038356,30]
[392329660,1761346247404,-444.98088267,0.00038356,30]
[392329661,1761346247413,-500.0,0.00038356,30]
[392329662,1761346247423,-500.0,0.00038356,30]
[392329663,1761346247433,-500.0,0.00038356,30]
[392329664,1761346247442,-767.81,0.00038356,30]
[392329665,1761346247452,-500.0,0.00038356,30]
[392329666,1761346247461,-500.0,0.00038356,30]
[392329667,1761346247471,-500.0,0.00038356,30]
[392329668,1761346247481,-500.0,0.00038356,30]
[392329669,1761346247490,-540.11,0.00038356,30]
[392329670,1761346247500,-500.0,0.00038356,30]
[392329671,1761346247509,-500.0,0.00038356,30]
[392329672,1761346247519,-500.0,0.00038356,30]
[392329673,1761346247528,-500.0,0.00038356,30]
[392329674,1761346247539,-500.0,0.00038356,30]
[392329675,1761346247548,-500.0,0.00038356,30]
[392329676,1761346247558,-500.0,0.00038356,30]
[392329677,1761346247568,-530.62,0.00038356,30]
[392329678,1761346247578,-500.0,0.00038356,30]
[392329679,1761346247588,-500.0,0.00038356,30]
[392329680,1761346247598,-500.0,0.00038356,30]
[392329681,1761346247607,-500.0,0.00038356,30]
[392329682,1761346247617,-500.0,0.00038356,30]
[392329683,1761346247627,-500.0,0.00038356,30]
[392329684,1761346247638,-500.0,0.00038356,30]
[392329685,1761346247648,-500.0,0.00038356,30]
[392329686,1761346247658,-371.97497548,0.00038356,30]
[392329687,1761346247668,-500.0,0.00038356,30]
[392329688,1761346247679,-500.0,0.00038356,30]
[392329689,1761346247691,-500.0,0.00038356,30]
[392329690,1761346247701,-551.3947534,0.00038356,30]
[392329691,1761346247712,-500.0,0.00038356,30]
[392329692,1761346247721,-347.31986767,0.00038356,30]
[392329693,1761346247731,-500.0,0.00038356,30]
[392329694,1761346247741,-176.96611413,0.00038356,30]
[392329695,1761346247751,-500.0,0.00038356,30]
[392329696,1761346247761,-500.0,0.00038356,30]
[392329697,1761346247775,-603.25359435,0.00038356,30]
[392329698,1761346247785,-523.51331957,0.00038356,30]
[392329699,1761346247795,-500.0,0.00038356,30]
[392329700,1761346247804,-500.0,0.00038356,30]
[392329701,1761346247814,-500.0,0.00038356,30]
[392329702,1761346247823,-500.0,0.00038356,30]
[392329703,1761346247833,-500.0,0.00038356,30]
[392329704,1761346247843,-500.0,0.00038356,30]
[392329705,1761346247853,-500.0,0.00038356,30]
[392329706,1761346247863,-500.0,0.00038356,30]
[392329707,1761346247873,-500.0,0.00038356,30]
[392329708,1761346247883,-500.0,0.00038356,30]
[392329709,1761346247892,-500.0,0.00038356,30]
[392329710,1761346247901,-500.0,0.00038356,30]
[392329711,1761346247910,-1009.27,0.00038356,30]
[392329712,1761346247920,-696.67,0.00038356,30]
[392329713,1761346247929,-475.03559111,0.00038356,30]
[392329714,1761346247939,-537.39,0.00038356,30]
[392329715,1761346247948,-500.0,0.00038356,30]
[392329716,1761346247958,-500.0,0.00038356,30]
[392329717,1761346247967,-500.0,0.00038356,30]
[392329718,1761346247976,-500.0,0.00038356,30]
[392329719,1761346247986,-500.0,0.00038356,30]
[392329720,1761346247995,-500.0,0.00038356,30]
[392329721,1761346248005,-500.0,0.00038356,30]
[392329722,1761346248020,-500.0,0.00038356,30]
[392329723,1761346248030,-500.0,0.00038356,30]
[392329724,1761346248040,-500.0,0.00038356,30]
[392329725,1761346248049,-500.0,0.00038356,30]
[392329726,1761346248059,-500.0,0.00038356,30]
[392329727,1761346248070,-500.0,0.00038356,30]
[392329728,1761346248079,-500.0,0.00038356,30]
[392329729,1761346248088,-500.0,0.00038356,30]
[392329730,1761346248099,-500.0,0.00038356,30]
[392329731,1761346248109,-500.0,0.00038356,30]
[392329732,1761346248118,-430.61863305,0.00038356,7]
[392329733,1761346248129,-500.0,0.00038356,30]
[392329734,1761346248139,-500.0,0.00038356,30]
[392329735,1761346248148,-500.0,0.00038356,30]
[392329736,1761346248160,-500.0,0.00038356,30]
[392329737,1761346248169,-139.83662403,0.00038356,30]
[392329738,1761346248185,-360.16337597,0.00038356,30]
[392329739,1761346248194,-545.39,0.00038356,30]
[392329740,1761346248207,-500.0,0.00038356,30]
[392329741,1761346248216,-500.0,0.00038356,30]
[392329742,1761346248225,-500.0,0.00038356,30]
[392329743,1761346248235,-500.0,0.00038356,12]
[392329744,1761346248244,-500.0,0.00038356,30]
[392329745,1761346248254,-500.0,0.00038356,30]
[392329746,1761346248263,-500.0,0.00038356,30]
[392329747,1761346248273,-500.0,0.00038356,30]
[392329748,1761346248282,-500.0,0.00038356,30]
[392329749,1761346248292,-500.0,0.00038356,30]
[392329750,1761346248302,-500.0,0.00038356,30]
[392329751,1761346248311,-500.0,0.00038356,30]
[392329752,1761346248321,-500.0,0.00038356,30]
[392329753,1761346248331,-500.0,0.00038356,30]
[392329754,1761346248340,-500.0,0.00038356,30]
[392329755,1761346248350,-564.68,0.00038356,30]
[392329756,1761346248359,-500.0,0.00038356,30]
[392329757,1761346248371,-500.0,0.00038356,30]
[392329758,1761346248622,-609.55578838,0.00038356,30]
[392329759,1761346248633,-772.37,0.00038356,30]
[392329760,1761346248642,-500.0,0.00038356,30]
[392329761,1761346248652,-546.81378044,0.00038356,30]
[392329762,1761346248661,-500.0,0.00038356,30]
[392329763,1761346248671,-500.0,0.00038356,30]
[392329764,1761346248679,-624.43,0.00038356,30]
[392329765,1761346248688,-162.50175128,0.00038356,30]
[392329766,1761346248698,-500.0,0.00038356,30]
[392329767,1761346248707,-500.0,0.00038356,30]
[392329768,1761346248716,-500.0,0.00038356,30]
[392329769,1761346248725,-500.0,0.00038356,30]
[392329770,1761346248734,-500.0,0.00038356,30]
[392329771,1761346248744,-500.0,0.00038356,30]
[392329772,1761346248753,-500.0,0.00038356,30]
[392329773,1761346248762,-500.0,0.00038356,30]
[392329774,1761346248771,-568.02,0.00038356,30]
[392329775,1761346248780,-500.0,0.00038356,30]
[392329776,1761346248789,-502.31,0.00038356,30]
[392329777,1761346248799,-406.81553224,0.00038356,30]
[392329778,1761346248808,-500.0,0.00038356,30]
[392329779,1761346248817,-500.0,0.00038356,30]
[392329780,1761346248826,-500.0,0.00038356,30]
[392329781,1761346248835,-500.0,0.00038356,30]
[392329782,1761346248844,-731.11,0.00038356,30]
[392329783,1761346248854,-2000.65,0.00038356,2]
[392329784,1761346248863,-500.0,0.00038356,30]
[392329785,1761346248872,-500.0,0.00038356,30]
[392329786,1761346248881,-500.65,0.00038356,30]
[392329787,1761346248890,-500.0,0.00038356,30]
[392329788,1761346248899,-500.0,0.00038356,30]
[392329789,1761346248908,-500.0,0.00038356,30]
[392329790,1761346248917,-500.0,0.00038356,30]
[392329791,1761346248926,-500.0,0.00038356,30]
[392329792,1761346248935,-500.0,0.00038356,30]
[392329793,1761346248944,-500.0,0.00038356,30]
[392329794,1761346248953,-500.0,0.00038356,30]
[392329795,1761346248962,-500.0,0.00038356,30]
[392329796,1761346248971,-500.0,0.00038356,30]
[392329797,1761346248980,-500.0,0.00038356,30]
[392329798,1761346248990,-500.0,0.00038356,30]
[392329799,1761346248999,-457.42195687,0.00038356,30]
[392329800,1761346249011,-535.03,0.00038356,30]
[392329801,1761346249025,-189.03041823,0.00038356,30]
[392329802,1761346249035,-500.0,0.00038356,30]
[392329803,1761346249044,-500.0,0.00038356,30]
[392329804,1761346249054,-500.0,0.00038356,30]
[392329805,1761346249064,-500.0,0.00038356,30]
[392329806,1761346249073,-500.0,0.00038356,30]
[392329807,1761346249082,-500.0,0.00038356,30]
[392329808,1761346249092,-500.0,0.00038356,30]
[392329809,1761346249101,-500.0,0.00038356,30]
[392329810,1761346249110,-500.0,0.00038356,30]
[392329811,1761346249120,-500.0,0.00038356,30]
[392329812,1761346249130,-500.0,0.00038356,30]
[392329813,1761346249139,-500.0,0.00038356,30]
[392329814,1761346249148,-620.2252073,0.00038356,30]
[392329815,1761346249158,-214.20737217,0.00038356,30]
[392329816,1761346249167,-500.0,0.00038356,30]
[392329817,1761346249176,-566.63781265,0.00038356,30]
[392329818,1761346249186,-500.0,0.00038356,30]
[392329819,1761346249195,-500.0,0.00038356,30]
[392329820,1761346249204,-500.0,0.00038356,30]
[392329821,1761346249214,-500.0,0.00038356,30]
[392329822,1761346249223,-611.78,0.00038356,30]
[392329823,1761346249232,-500.0,0.00038356,2]
[392329824,1761346249242,-500.0,0.00038356,30]
[392329825,1761346249251,-581.55,0.00038356,30]
[392329826,1761346249261,-119.81210001,0.00038356,30]
[392329829,1761347129341,157.55,0.00013699,2]
[392329846,1761347432107,-157.55,0.00020951,2]
[392329847,1761347432116,-892.88,0.00028,15]
[392329848,1761347432126,-157.55,0.00028203,2]
[392329849,1761347432134,-500.0,0.0003,60]
[392329850,1761347432144,-168.0,0.0003465,2]
[392329851,1761347432152,-150.0,0.0003465,2]
[392329852,1761347432161,-316.0,0.00034829,120]
[392329853,1761347432170,-168.0,0.00034877,2]
[392329854,1761347432178,-1600.0,0.00035087,3]
[392329855,1761347432189,-150.0,0.00035088,7]
[392329856,1761347432199,-160.12198296,0.00035088,7]
[392329857,1761347432208,-227.5178289,0.00035088,7]
[392329858,1761347432217,-256.9758607,0.00035088,7]
[392329859,1761347432227,-150.0,0.00035088,7]
[392329860,1761347432235,-150.0,0.00035088,7]
[392329861,1761347432246,-316.0,0.00035361,2]
[392329862,1761347432256,-157.55,0.00035455,2]
[392329863,1761347432266,-500.0,0.00035534,2]
[392329864,1761347432276,-215.0,0.00035634,2]
[392329865,1761347432285,-6539.0,0.00035789,2]
[392329866,1761347432295,-558.0,0.00035789,2]
[392329867,1761347432305,-3487.0,0.00035789,2]
[392329868,1761347432314,-400.0,0.00035904,2]
[392329869,1761347432323,-316.0,0.00035906,2]
[392329870,1761347432332,-152.0,0.00035945,3]
[392329871,1761347432341,-215.0,0.00036037,2]
[392329872,1761347432350,-200.0,0.00036259,2]
[392329873,1761347432359,-150.0,0.0003638,2]
[392329874,1761347432368,-500.0,0.00036387,30]
[392329875,1761347432377,-200.0,0.00036406,2]
[392329876,1761347432386,-500.0,0.00036418,30]
[392329877,1761347432395,-226.72,0.00036423,2]
[392329878,1761347432404,-215.0,0.00036536,7]
[392329879,1761347432412,-1600.0,0.00036536,2]
[392329880,1761347432421,-1305.0,0.00036536,2]
[392329881,1761347432430,-216.0,0.00036644,2]
[392329883,1761347432439,-734.66,0.00036712,2]
[392329884,1761347432448,-500.0,0.00036728,30]
[392329886,1761347432457,-500.0,0.00036728,30]
[392329887,1761347432465,-250.0,0.0003673,30]
[392329888,1761347432474,-150.0,0.0003673,2]
[392329889,1761347432482,-212.77718452,0.000368,2]
[392329890,1761347432491,-250.0,0.00036827,120]
[392329891,1761347432500,-151.662,0.00036846,46]
[392329892,1761347432508,-216.0,0.00036846,2]
[392329893,1761347432517,-151.0,0.0003685,2]
[392329894,1761347432526,-195.89999107,0.0003685,2]
[392329895,1761347432535,-1000.0,0.00036871,2]
[392329896,1761347432544,-254.72061029,0.00036871,15]
[392329897,1761347432553,-161.53558131,0.00036871,15]
[392329898,1761347432562,-50664.49076191,0.00036872,2]
[392329899,1761347432678,-476.14923809,0.00036872,2]
[392329900,1761347432688,-500.0,0.000369,5]
[392329901,1761347432697,-500.0,0.000369,5]
[392329902,1761347432706,-500.0,0.000369,2]
[392329903,1761347432717,-500.0,0.000369,5]
[392329904,1761347432726,-500.0,0.000369,5]
[392329905,1761347432735,-446.38832103,0.000369,5]
[392329906,1761347432745,-250.0,0.00037025,7]
[392329907,1761347432754,-162.7032254,0.000372,120]
[392329908,1761347432764,-162.70322538,0.000372,120]
[392329909,1761347432773,-215.0,0.00037264,2]
[392329910,1761347432783,-250.0,0.00037345,2]
[392329911,1761347432797,-1403.13,0.00037345,2]
[392329912,1761347432806,-150.0,0.00037345,2]
[392329913,1761347432816,-150.0,0.00037345,120]
[392329914,1761347432826,-500.0,0.00037345,2]
[392329915,1761347432836,-500.0,0.00037356,7]
[392329916,1761347432846,-500.0,0.00037356,7]
[392329917,1761347432855,-500.0,0.00037356,7]
[392329918,1761347432871,-500.0,0.00037356,7]
[392329919,1761347432881,-500.0,0.00037356,7]
[392329920,1761347432890,-500.0,0.00037356,7]
[392329921,1761347432900,-500.0,0.00037356,7]
[392329922,1761347432909,-500.0,0.00037356,7]
[392329923,1761347432919,-500.0,0.00037356,7]
[392329924,1761347432928,-215.0,0.00037406,120]
[392329925,1761347432938,-215.0,0.00037426,120]
[392329926,1761347432949,-1000.0,0.00037448,5]
[392329927,1761347432959,-500.0,0.00037448,5]
[392329928,1761347432970,-832.82157928,0.00037448,5]
[392329929,1761347432984,-167.17842072,0.00037448,5]
[392329930,1761347432994,-1000.0,0.00037448,5]
[392329931,1761347433003,-212.7771845,0.00037478,2]
[392329932,1761347433012,-215.0,0.00037606,2]
[392329933,1761347433022,-1000.0,0.00037613,2]
[392329934,1761347433031,-496.94,0.00037616,14]
[392329935,1761347433041,-500.0,0.0003763,7]
[392329936,1761347433050,-231.6,0.0003763,7]
[392329937,1761347433059,-500.0,0.0003763,7]
[392329938,1761347433068,-500.0,0.0003763,7]
[392329939,1761347433078,-500.0,0.0003763,7]
[392329940,1761347433087,-500.0,0.0003763,7]
[392329941,1761347433096,-500.0,0.0003763,7]
[392329942,1761347433106,-500.0,0.0003763,7]
[392329943,1761347433115,-500.0,0.0003763,7]
[392329944,1761347433124,-500.0,0.0003763,7]
[392329945,1761347433133,-500.0,0.0003763,7]
[392329946,1761347433143,-500.0,0.0003763,7]
[392329947,1761347433153,-500.0,0.0003763,7]
[392329948,1761347433162,-500.0,0.0003763,7]
[392329949,1761347433171,-500.0,0.0003763,7]
[392329950,1761347433180,-500.0,0.0003763,7]
[392329951,1761347433189,-500.0,0.0003763,7]
[392329952,1761347433199,-500.0,0.0003763,7]
[392329953,1761347433208,-500.0,0.0003763,7]
[392329954,1761347433217,-500.0,0.00037651,30]
[392329955,1761347433227,-216.0,0.00037706,120]
[392329956,1761347433236,-215.0,0.00037707,7]
[392329957,1761347433246,-202.16586211,0.00037789,2]
[392329958,1761347433255,-1000.0,0.000378,2]
[392329959,1761347433265,-400.0,0.000378,13]
[392329960,1761347433274,-500.0,0.00037858,30]
[392329961,1761347433527,-5000.0,0.00037877,2]
[392329962,1761347433536,-812.0,0.000379,45]
[392329963,1761347433546,-900.0,0.000379,13]
[392329964,1761347433555,-3266.11409,0.0003797,2]
[392329965,1761347433565,-500.0,0.00037996,5]
[392329966,1761347433575,-384.94150132,0.00037996,5]
[392329967,1761347433584,-202.80124093,0.00037996,5]
[392329968,1761347433594,-1000.0,0.00038,30]
[392329969,1761347433604,-204.74888,0.00038,120]
[392329970,1761347433613,-215.0,0.00038009,2]
[392329971,1761347433622,-200.0,0.00038027,2]
[392329972,1761347433631,-215.0,0.00038039,7]
[392329973,1761347433641,-200.0,0.00038049,10]
[392329974,1761347433651,-734.66,0.00038088,2]
[392329975,1761347433660,-1000.0,0.000381,7]
[392329976,1761347433669,-182.0,0.00038137,3]
[392329977,1761347433680,-1425.0,0.00038142,2]
[392329978,1761347433689,-212.7771845,0.00038155,2]
[392329979,1761347433698,-254.9444,0.00038155,2]
[392329980,1761347433708,-233.7175,0.00038155,2]
[392329981,1761347433717,-1000.0,0.00038156,2]
[392329982,1761347433726,-2500.0,0.00038156,2]
[392329983,1761347433735,-159.69123113,0.00038156,15]
[392329984,1761347433745,-1073.15212298,0.00038156,10]
[392329985,1761347433754,-2605.02084699,0.00038156,2]
[392329986,1761347433764,-152.25,0.00038156,2]
[392329987,1761347433774,-250.0,0.00038183,2]
[392329988,1761347433783,-28958.37429988,0.00038246,3]
[392329989,1761347433800,-51047.49061142,0.00038246,3]
[392329990,1761347433810,-500.0,0.00038255,2]
[392329991,1761347433821,-500.0,0.00038255,2]
[392329992,1761347433832,-500.0,0.00038255,2]
[392329993,1761347433842,-1000.0,0.00038256,2]
[392329994,1761347433852,-33170.7581,0.00038256,2]
[392329995,1761347433863,-90249.8294333,0.00038256,2]
[392329996,1761347433875,-1254.41808677,0.00038256,2]
[392330031,1761347499884,198.0,0.0003673,30]
[392330035,1761348307837,3729621.43255184,0.00015,2]
[392330036,1761348318199,10444.23643207,0.0003673,120]
[392330044,1761348415765,2279.12635739,0.00015,14]
[392330047,1761348474516,77892.19520034,0.00015,2]
[392330054,1761348512520,1287.56859016,0.0001421,7]
[392330077,1761348631996,-1272.51095852,0.0002,2]
[392330079,1761348632006,-166.66,0.00033846,30]
[392330080,1761348632017,-150.0,0.00034,120]
[392330081,1761348632027,-169.62,0.00034316,2]
[392330082,1761348632036,-166.66,0.00034559,30]
[392330083,1761348632045,-150.0,0.00035088,7]
[392330084,1761348632055,-166.66,0.00035271,30]
[392330085,1761348632065,-168.0,0.00035707,2]
[392330086,1761348632074,-666.0,0.00035816,3]
[392330087,1761348632084,-166.66,0.00035984,30]
[392330088,1761348632093,-168.0,0.0003627,2]
[392330089,1761348632103,-500.0,0.00036309,30]
[392330090,1761348632112,-168.0,0.00036341,2]
[392330091,1761348632121,-150.0,0.00036418,2]
[392330092,1761348632130,-5888.0,0.00036421,7]
[392330093,1761348632140,-168.0,0.00036443,2]
[392330094,1761348632149,-475.59,0.00036469,2]
[392330095,1761348632159,-357.1235277,0.000365,2]
[392330096,1761348632168,-160.45,0.00036607,2]
[392330097,1761348632177,-2778.68890348,0.0003663,2]
[392330098,1761348632187,-159.69123111,0.0003663,15]
[392330099,1761348632196,-3763.01,0.00036647,2]
[392330100,1761348632205,-11080.72192956,0.00036678,2]
[392330101,1761348632214,-173.87949935,0.00036678,2]
[392330102,1761348632223,-1001.60864818,0.00036678,9]
[392330103,1761348632232,-166.66,0.00036696,30]
[392330104,1761348632241,-151.0,0.00036727,14]
[392330105,1761348632250,-500.0,0.00036729,2]
[392330106,1761348632259,-500.0,0.00036729,2]
[392330107,1761348632268,-500.0,0.00036729,30]
[392330108,1761348632277,-500.0,0.00036729,30]
[392330109,1761348632287,-566.49,0.00036768,2]
[392330110,1761348632296,-566.49,0.00036768,2]
[392330111,1761348632305,-566.49,0.00036768,2]
[392330112,1761348632314,-566.49,0.00036768,2]
[392330113,1761348632323,-566.49,0.00036768,2]
[392330114,1761348632332,-162.9,0.00036768,2]
[392330115,1761348632341,-500.0,0.00036773,5]
[392330116,1761348632350,-500.0,0.00036773,5]
[392330118,1761348632359,-500.0,0.00036773,2]
[392330120,1761348632368,-500.0,0.00036773,5]
[392330122,1761348632377,-500.0,0.00036773,5]